fUST/lending_fUST_20250716
["ID","MTS","AMOUNT","RATE_DAILY","PERIOD"]
[372424234,1752640234083,-460.0,0.00019178,2]
[372424235,1752640234093,-460.0,0.00019178,2]
[372424236,1752640234102,-460.0,0.00019178,2]
[372424237,1752640234111,-460.0,0.00019178,2]
[372424238,1752640234121,-460.0,0.00019178,2]
[372424239,1752640234131,-510.0491602,0.00019178,2]
[372424240,1752640234140,-460.0,0.00019178,2]
[372424241,1752640234150,-460.0,0.00019178,2]
[372424242,1752640234160,-1228.14,0.00019178,2]
[372424243,1752640234169,-288.69696298,0.00019178,2]
[372424267,1752640238299,-155.0,0.00019177,2]
[372424269,1752640238309,-211.30303702,0.00019178,2]
[372424271,1752640238319,-1004.49447885,0.00019178,2]
[372424292,1752640238515,-99.50552115,0.00019178,2]
[372424294,1752640238525,-460.0,0.00019178,2]
[372424296,1752640238534,-151.0,0.00019178,2]
[372424298,1752640238544,-460.0,0.00019178,2]
[372424300,1752640238553,-234.71671928,0.00019178,2]
[372424302,1752640238563,-460.0,0.00019178,2]
[372424304,1752640238572,-500.0,0.00019178,2]
[372424306,1752640238581,-460.0,0.00019178,2]
[372424308,1752640238590,-460.0,0.00019178,2]
[372424310,1752640238599,-460.0,0.00019178,2]
[372424312,1752640238609,-460.0,0.00019178,2]
[372424314,1752640238618,-460.0,0.00019178,2]
[372424316,1752640238627,-460.0,0.00019178,2]
[372424318,1752640238637,-460.0,0.00019178,2]
[372424320,1752640238646,-705.74,0.00019178,2]
[372424322,1752640238655,-361.33585777,0.00019178,2]
[372424324,1752640238667,-98.66414223,0.00019178,2]
[372424326,1752640238676,-460.0,0.00019178,2]
[372424328,1752640238686,-460.0,0.00019178,2]
[372424330,1752640238695,-460.0,0.00019178,2]
[372424332,1752640238704,-460.0,0.00019178,2]
[372424334,1752640238713,-460.0,0.00019178,2]
[372424336,1752640238722,-460.0,0.00019178,2]
[372424338,1752640238731,-461.49592624,0.00019178,2]
[372424340,1752640238740,-460.0,0.00019178,2]
[372424342,1752640238750,-460.0,0.00019178,2]
[372424344,1752640238759,-460.0,0.00019178,2]
[372424346,1752640238768,-460.0,0.00019178,2]
[372424348,1752640238778,-151.0,0.00019178,2]
[372424350,1752640238787,-500.0,0.00019178,2]
[372424352,1752640238797,-463.24179417,0.00019178,2]
[372424354,1752640238806,-460.0,0.00019178,2]
[372424356,1752640238816,-500.0,0.00019178,2]
[372424358,1752640238825,-460.0,0.00019178,2]
[372424360,1752640238834,-460.0,0.00019178,2]
[372424362,1752640238844,-500.0,0.00019178,2]
[372424364,1752640238854,-460.0,0.00019178,2]
[372424366,1752640238863,-460.0,0.00019178,2]
[372424368,1752640238872,-1986.36,0.00019178,2]
[372424370,1752640238882,-151.0,0.00019178,2]
[372424372,1752640238892,-460.0,0.00019178,2]
[372424374,1752640238901,-559.29,0.00019178,2]
[372424376,1752640238911,-460.0,0.00019178,2]
[372424377,1752640238920,-460.0,0.00019178,2]
[372424379,1752640238929,-460.0,0.00019178,2]
[372424380,1752640238938,-460.0,0.00019178,2]
[372424382,1752640238947,-460.0,0.00019178,2]
[372424384,1752640238958,-198.612317,0.00019178,2]
[372424386,1752640238967,-666.0,0.00019178,2]
[372424388,1752640238976,-2031.66904323,0.00019178,2]
[372424390,1752640238987,-1154.25,0.000192,2]
[372424392,1752640238997,-460.0,0.00019231,2]
[372424394,1752640239009,-460.0,0.00019231,2]
[372424396,1752640239018,-460.0,0.00019231,2]
[372424398,1752640239028,-460.0,0.00019231,2]
[372424400,1752640239037,-413.75278172,0.00019231,2]
[372424402,1752640239046,-460.0,0.00019231,2]
[372424404,1752640239056,-460.0,0.00019231,2]
[372424406,1752640239066,-471.46694917,0.00019231,2]
[372424408,1752640239076,-460.0,0.00019231,2]
[372424409,1752640239085,-460.0,0.00019231,2]
[372424411,1752640239095,-460.0,0.00019231,2]
[372424413,1752640239104,-460.0,0.00019231,2]
[372424415,1752640239114,-460.0,0.00019231,2]
[372424417,1752640239123,-460.0,0.00019231,2]
[372424419,1752640239132,-465.63575735,0.00019231,2]
[372424421,1752640239147,-460.0,0.00019231,2]
[372424423,1752640239162,-460.0,0.00019231,2]
[372424432,1752640239262,-464.21161945,0.00019231,2]
[372424433,1752640239272,-460.0,0.00019231,2]
[372424434,1752640239282,-460.0,0.00019231,2]
[372424435,1752640239291,-601.45951108,0.00019231,2]
[372424436,1752640239301,-460.0,0.00019231,2]
[372424437,1752640239310,-460.0,0.00019231,2]
[372424438,1752640239319,-460.0,0.00019231,2]
[372424439,1752640239328,-224.09989709,0.00019231,2]
[372424440,1752640239337,-460.0,0.00019231,2]
[372424441,1752640239346,-565.52248974,0.00019231,2]
[372424442,1752640239355,-460.0,0.00019231,2]
[372424443,1752640239365,-460.0,0.00019231,2]
[372424444,1752640239374,-460.0,0.00019231,2]
[372424445,1752640239383,-462.97303259,0.00019231,2]
[372424446,1752640239393,-460.0,0.00019231,2]
[372424447,1752640239402,-460.0,0.00019231,2]
[372424448,1752640239411,-460.0,0.00019231,2]
[372424449,1752640239421,-460.0,0.00019231,2]
[372424450,1752640239430,-460.0,0.00019231,2]
[372424451,1752640239439,-460.0,0.00019231,2]
[372424452,1752640239448,-460.0,0.00019231,2]
[372424453,1752640239457,-500.0,0.00019231,2]
[372424454,1752640239467,-460.0,0.00019231,2]
[372424455,1752640239476,-460.0,0.00019231,2]
[372424456,1752640239485,-460.0,0.00019231,2]
[372424457,1752640239495,-460.0,0.00019231,2]
[372424458,1752640239504,-460.0,0.00019231,2]
[372424459,1752640239513,-500.0,0.00019231,2]
[372424460,1752640239522,-462.66237575,0.00019231,2]
[372424461,1752640239532,-462.88692985,0.00019231,2]
[372424462,1752640239540,-460.0,0.00019231,2]
[372424463,1752640239549,-500.0,0.00019238,2]
[372424464,1752640239559,-151.0,0.000193,2]
[372424465,1752640239568,-460.0,0.00019451,2]
[372424466,1752640239577,-460.0,0.00019451,2]
[372424467,1752640239586,-460.0,0.00019451,2]
[372424468,1752640239595,-460.0,0.00019451,2]
[372424469,1752640239605,-460.0,0.00019451,2]
[372424470,1752640239614,-460.0,0.00019451,2]
[372424471,1752640239623,-460.0,0.00019451,2]
[372424472,1752640239632,-460.0,0.00019451,2]
[372424473,1752640239641,-460.0,0.00019451,2]
[372424474,1752640239650,-460.0,0.00019451,2]
[372424475,1752640239659,-460.0,0.00019451,2]
[372424476,1752640239668,-460.0,0.00019451,2]
[372424477,1752640239677,-460.0,0.00019451,2]
[372424478,1752640239686,-460.0,0.00019451,2]
[372424479,1752640239696,-460.0,0.00019451,2]
[372424480,1752640239705,-460.0,0.00019451,2]
[372424481,1752640239714,-460.0,0.00019451,2]
[372424482,1752640239723,-460.0,0.00019451,2]
[372424483,1752640239732,-460.0,0.00019451,2]
[372424484,1752640239742,-460.0,0.00019451,2]
[372424486,1752640239751,-460.0,0.00019451,2]
[372424488,1752640239763,-468.29090664,0.00019451,2]
[372424490,1752640239772,-460.0,0.00019451,2]
[372424492,1752640239782,-460.5177761,0.00019451,2]
[372424494,1752640239792,-460.0,0.00019451,2]
[372424496,1752640239801,-460.0,0.00019451,2]
[372424498,1752640239810,-460.0,0.00019451,2]
[372424500,1752640239819,-460.0,0.00019451,2]
[372424502,1752640239829,-460.0,0.00019451,2]
[372424504,1752640239838,-460.0,0.00019451,2]
[372424506,1752640239847,-460.0,0.00019451,2]
[372424508,1752640239856,-460.0,0.00019451,2]
[372424510,1752640239865,-500.0,0.00019451,2]
[372424511,1752640239875,-460.0,0.00019451,2]
[372424513,1752640239884,-460.0,0.00019451,2]
[372424516,1752640239894,-500.0,0.00019452,2]
[372424518,1752640239905,-500.0,0.00019452,2]
[372424520,1752640239915,-1104.0,0.00019452,2]
[372424521,1752640239925,-151.0,0.00019452,2]
[372424523,1752640239934,-500.0,0.00019452,2]
[372424525,1752640239943,-151.0,0.00019452,2]
[372424527,1752640239952,-500.0,0.00019452,2]
[372424529,1752640239962,-525.92121606,0.00019452,2]
[372424531,1752640239971,-500.0,0.00019452,2]
[372424533,1752640239980,-151.56777351,0.00019452,2]
[372424535,1752640239991,-460.0,0.00019452,2]
[372424537,1752640240001,-457.28225894,0.00019452,2]
[372424539,1752640240011,-495.02,0.00019452,2]
[372424541,1752640240020,-460.0,0.00019452,2]
[372424543,1752640240031,-460.0,0.00019452,2]
[372424545,1752640240040,-460.0,0.00019452,2]
[372424547,1752640240050,-460.0,0.00019452,2]
[372424549,1752640240061,-460.0,0.00019452,2]
[372424551,1752640240071,-460.0,0.00019452,2]
[372424553,1752640240080,-460.0,0.00019452,2]
[372424554,1752640240090,-460.0,0.00019452,2]
[372424556,1752640240100,-460.0,0.00019452,2]
[372424558,1752640240109,-413.06,0.00019452,2]
[372424560,1752640240118,-460.0,0.00019452,2]
[372424562,1752640240128,-565.57115873,0.00019452,2]
[372424564,1752640240138,-460.0,0.00019452,2]
[372424566,1752640240148,-460.0,0.00019452,2]
[372424568,1752640240157,-460.0,0.00019452,2]
[372424570,1752640240167,-460.0,0.00019452,2]
[372424572,1752640240176,-2936.0,0.00019452,2]
[372424574,1752640240185,-460.0,0.00019452,2]
[372424576,1752640240194,-602.44,0.00019452,2]
[372424578,1752640240203,-744.89,0.00019452,2]
[372424580,1752640240213,-1589.32,0.00019452,2]
[372424582,1752640240222,-460.0,0.00019452,2]
[372424584,1752640240231,-467.77221299,0.00019452,2]
[372424586,1752640240241,-460.0,0.00019452,2]
[372424588,1752640240250,-460.0,0.00019452,2]
[372424590,1752640240259,-152.88070772,0.00019452,2]
[372424592,1752640240269,-979.0,0.00019452,2]
[372424594,1752640240279,-460.0,0.00019452,2]
[372424596,1752640240288,-525.82451933,0.00019452,2]
[372424598,1752640240297,-460.0,0.00019452,2]
[372424600,1752640240307,-1006.77,0.00019452,2]
[372424602,1752640240316,-460.0,0.00019452,2]
[372424604,1752640240326,-460.0,0.00019452,2]
[372424606,1752640240335,-460.0,0.00019452,2]
[372424608,1752640240346,-1228.14,0.00019452,2]
[372424610,1752640240358,-460.0,0.00019452,2]
[372424612,1752640240367,-460.0,0.00019452,2]
[372424614,1752640240377,-460.0,0.00019452,2]
[372424616,1752640240386,-460.0,0.00019452,2]
[372424618,1752640240396,-460.0,0.00019452,2]
[372424620,1752640240405,-460.0,0.00019452,2]
[372424622,1752640240414,-460.0,0.00019452,2]
[372424624,1752640240423,-705.74,0.00019452,2]
[372424626,1752640240433,-476.09,0.00019452,2]
[372424628,1752640240442,-460.0,0.00019452,2]
[372424630,1752640240451,-460.0,0.00019452,2]
[372424632,1752640240461,-460.0,0.00019452,2]
[372424634,1752640240470,-460.0,0.00019452,2]
[372424636,1752640240479,-463.27328941,0.00019452,2]
[372424638,1752640240488,-460.0,0.00019452,2]
[372424640,1752640240497,-460.0,0.00019452,2]
[372424642,1752640240507,-460.0,0.00019452,2]
[372424644,1752640240516,-507.12019643,0.00019452,2]
[372424646,1752640240525,-460.0,0.00019452,2]
[372424648,1752640240536,-249.17,0.00019452,2]
[372424649,1752640240545,-1986.36,0.00019452,2]
[372424651,1752640240555,-460.0,0.00019452,2]
[372424653,1752640240565,-559.29,0.00019452,2]
[372424655,1752640240574,-460.0,0.00019452,2]
[372424658,1752640240585,-460.0,0.00019452,2]
[372424660,1752640240595,-463.35503108,0.00019452,2]
[372424662,1752640240604,-500.54509105,0.00019473,2]
[372424663,1752640240613,-249.1753372,0.00019473,2]
[372424665,1752640240624,-501.90551534,0.00019473,2]
[372424667,1752640240633,-163.42539539,0.00019473,2]
[372424669,1752640240642,-503.86476806,0.00019473,2]
[372424671,1752640240651,-423.18,0.0001949,3]
[372424673,1752640240661,-846.34,0.00019495,3]
[372424675,1752640240670,-500.0,0.00019504,2]
[372424677,1752640240679,-550.35227631,0.00019505,2]
[372424679,1752640240688,-460.0,0.00019505,2]
[372424681,1752640240697,-460.0,0.00019505,2]
[372424683,1752640240706,-460.0,0.00019505,2]
[372424685,1752640240715,-460.0,0.00019505,2]
[372424687,1752640240725,-460.0,0.00019505,2]
[372424689,1752640240734,-460.0,0.00019505,2]
[372424691,1752640240744,-275.9,0.00019505,2]
[372424693,1752640240753,-460.0,0.00019505,2]
[372424695,1752640240763,-460.0,0.00019505,2]
[372424697,1752640240772,-460.0,0.00019505,2]
[372424699,1752640240784,-500.0,0.00019509,2]
[372424701,1752640240796,-2110.04,0.000196,2]
[372424703,1752640240806,-160.0,0.00019696,2]
[372424705,1752640240816,-460.0,0.00019725,2]
[372424707,1752640240826,-460.0,0.00019725,2]
[372424709,1752640240836,-530.42,0.00019725,2]
[372424711,1752640240846,-460.0,0.00019725,2]
[372424713,1752640240855,-460.0,0.00019725,2]
[372424715,1752640240865,-445.46022027,0.00019725,2]
[372424717,1752640240874,-460.0,0.00019725,2]
[372424719,1752640240883,-460.0,0.00019725,2]
[372424721,1752640240893,-460.0,0.00019725,2]
[372424723,1752640240902,-460.0,0.00019725,2]
[372424725,1752640240911,-603.7388468,0.00019725,2]
[372424727,1752640240921,-460.0,0.00019725,2]
[372424729,1752640240930,-500.0,0.00019725,2]
[372424731,1752640240939,-460.0,0.00019725,2]
[372424733,1752640240948,-500.0,0.00019726,2]
[372424735,1752640240958,-408.47516588,0.00019726,2]
[372424737,1752640240967,-1104.0,0.00019726,2]
[372424739,1752640240977,-151.0,0.00019726,2]
[372424741,1752640240986,-502.52018765,0.00019726,2]
[372424743,1752640240999,-151.84570387,0.00019726,2]
[372424745,1752640241008,-500.0,0.00019726,2]
[372424747,1752640241018,-500.0,0.00019726,2]
[372424749,1752640241029,-460.0,0.00019726,2]
[372424751,1752640241038,-460.0,0.00019726,2]
[372424753,1752640241048,-335.05892552,0.00019726,2]
[372424755,1752640241057,-460.0,0.00019726,2]
[372424757,1752640241066,-460.0,0.00019726,2]
[372424759,1752640241076,-460.0,0.00019726,2]
[372424761,1752640241086,-460.0,0.00019726,2]
[372424763,1752640241096,-460.0,0.00019726,2]
[372424765,1752640241105,-2936.0,0.00019726,2]
[372424766,1752640241114,-460.0,0.00019726,2]
[372424768,1752640241123,-602.44,0.00019726,2]
[372424770,1752640241132,-744.89,0.00019726,2]
[372424772,1752640241142,-1589.32,0.00019726,2]
[372424774,1752640241150,-460.0,0.00019726,2]
[372424776,1752640241160,-460.0,0.00019726,2]
[372424778,1752640241169,-460.0,0.00019726,2]
[372424780,1752640241178,-979.0,0.00019726,2]
[372424782,1752640241188,-460.0,0.00019726,2]
[372424784,1752640241197,-460.0,0.00019726,2]
[372424786,1752640241207,-1006.77,0.00019726,2]
[372424787,1752640241216,-1228.14,0.00019726,2]
[372424789,1752640241226,-463.48573571,0.00019726,2]
[372424791,1752640241235,-460.0,0.00019726,2]
[372424793,1752640241244,-460.0,0.00019726,2]
[372424795,1752640241254,-460.0,0.00019726,2]
[372424797,1752640241263,-460.0,0.00019726,2]
[372424799,1752640241272,-460.0,0.00019726,2]
[372424801,1752640241283,-705.74,0.00019726,2]
[372424803,1752640241293,-460.0,0.00019726,2]
[372424805,1752640241303,-460.0,0.00019726,2]
[372424807,1752640241312,-460.0,0.00019726,2]
[372424809,1752640241321,-460.0,0.00019726,2]
[372424811,1752640241331,-460.0,0.00019726,2]
[372424813,1752640241340,-460.0,0.00019726,2]
[372424815,1752640241349,-1986.36,0.00019726,2]
[372424817,1752640241359,-363.81338388,0.00019726,2]
[372424819,1752640241368,-559.29,0.00019726,2]
[372424821,1752640241377,-460.0,0.00019726,2]
[372424823,1752640241387,-263.0,0.00019779,2]
[372424825,1752640241396,-460.0,0.00019779,2]
[372424826,1752640241407,-460.0,0.00019779,2]
[372424828,1752640241417,-539.3,0.00019779,2]
[372424830,1752640241427,-420.0,0.00019854,2]
[372424832,1752640241436,-151.0,0.000199,2]
[372424834,1752640241446,-460.0,0.00019999,2]
[372424836,1752640241455,-460.0,0.00019999,2]
[372424838,1752640241464,-460.0,0.00019999,2]
[372424840,1752640241473,-460.0,0.00019999,2]
[372424842,1752640241483,-460.0,0.00019999,2]
[372424844,1752640241492,-460.0,0.00019999,2]
[372424846,1752640241501,-500.0,0.00019999,2]
[372424848,1752640241510,-460.0,0.00019999,2]
[372424850,1752640241519,-460.0,0.00019999,2]
[372424852,1752640241529,-500.0,0.00019999,2]
[372424854,1752640241539,-1104.0,0.0002,2]
[372424856,1752640241548,-151.0,0.0002,2]
[372424858,1752640241557,-500.0,0.0002,2]
[372424859,1752640241566,-500.0,0.0002,2]
[372424869,1752640241661,-460.0,0.0002,2]
[372424871,1752640241671,-327.33,0.0002,2]
[372424873,1752640241680,-460.0,0.0002,2]
[372424875,1752640241689,-460.0,0.0002,2]
[372424877,1752640241698,-460.0,0.0002,2]
[372424879,1752640241707,-2936.0,0.0002,2]
[372424881,1752640241717,-460.0,0.0002,2]
[372424883,1752640241726,-602.44,0.0002,2]
[372424885,1752640241735,-744.89,0.0002,2]
[372424887,1752640241744,-1589.32,0.0002,2]
[372424889,1752640241753,-460.0,0.0002,2]
[372424891,1752640241762,-460.0,0.0002,2]
[372424893,1752640241772,-979.0,0.0002,2]
[372424895,1752640241781,-460.0,0.0002,2]
[372424897,1752640241791,-460.0,0.0002,2]
[372424899,1752640241800,-1006.77,0.0002,2]
[372424900,1752640241809,-1228.14,0.0002,2]
[372424902,1752640241818,-460.0,0.0002,2]
[372424904,1752640241828,-330.14363678,0.0002,2]
[372424906,1752640241838,-460.0,0.0002,2]
[372424908,1752640241847,-561.15,0.0002,2]
[372424910,1752640241856,-460.0,0.0002,2]
[372424912,1752640241866,-705.74,0.0002,2]
[372424914,1752640241875,-460.0,0.0002,2]
[372424916,1752640241885,-531.91,0.0002,2]
[372424918,1752640241894,-460.0,0.0002,2]
[372424920,1752640241903,-460.0,0.0002,2]
[372424922,1752640241913,-1986.36,0.0002,2]
[372424924,1752640241922,-559.29,0.0002,2]
[372424926,1752640241931,-460.0,0.0002,2]
[372424928,1752640241940,-300.67506845,0.00020031,2]
[372424930,1752640241949,-393.78,0.00020053,2]
[372424932,1752640241959,-188.05,0.00020053,2]
[372424934,1752640241968,-500.0,0.00020057,2]
[372424936,1752640241978,-1213.75983152,0.00020173,2]
[372424938,1752640241988,-330.241595,0.00020187,2]
[372424940,1752640242000,-260.0,0.00020244,2]
[372424942,1752640242009,-453.38449755,0.00020273,2]
[372424944,1752640242018,-460.0,0.00020273,2]
[372424946,1752640242027,-460.0,0.00020273,2]
[372424948,1752640242039,-460.0,0.00020273,2]
[372424950,1752640242048,-460.0,0.00020273,2]
[372424952,1752640242057,-460.0,0.00020273,2]
[372424953,1752640242068,-460.0,0.00020273,2]
[372424955,1752640242077,-460.0,0.00020273,2]
[372424957,1752640242087,-585.74,0.00020273,2]
[372424959,1752640242096,-2936.0,0.00020273,2]
[372424961,1752640242105,-460.0,0.00020273,2]
[372424963,1752640242114,-602.44,0.00020273,2]
[372424965,1752640242124,-460.0,0.00020273,2]
[372424967,1752640242134,-744.89,0.00020273,2]
[372424969,1752640242143,-1589.32,0.00020273,2]
[372424971,1752640242156,-460.0,0.00020273,2]
[372424973,1752640242166,-979.0,0.00020273,2]
[372424975,1752640242176,-460.0,0.00020273,2]
[372424977,1752640242185,-485.5,0.00020273,2]
[372424979,1752640242195,-1006.77,0.00020273,2]
[372424981,1752640242204,-460.0,0.00020273,2]
[372424983,1752640242214,-1228.14,0.00020273,2]
[372424984,1752640242223,-244.8,0.00020273,2]
[372424985,1752640242232,-460.0,0.00020273,2]
[372424986,1752640242242,-269.88,0.00020273,2]
[372424987,1752640242251,-705.74,0.00020273,2]
[372424988,1752640242260,-460.0,0.00020273,2]
[372424989,1752640242268,-460.0,0.00020273,2]
[372424990,1752640242278,-460.0,0.00020273,2]
[372424991,1752640242288,-1986.36,0.00020273,2]
[372424992,1752640242297,-559.29,0.00020273,2]
[372424993,1752640242306,-460.0,0.00020273,2]
[372424994,1752640242315,-1104.0,0.00020274,2]
[372424995,1752640242324,-157.48555248,0.00020274,2]
[372424996,1752640242333,-500.0,0.00020274,2]
[372424997,1752640242343,-199.85081312,0.00020274,2]
[372424998,1752640242352,-500.0,0.00020288,2]
[372425000,1752640242361,-501.75506861,0.00020288,2]
[372425002,1752640242370,-500.0,0.00020331,2]
[372425004,1752640242379,-151.0,0.000204,3]
[372425006,1752640242389,-150.0,0.0002047,2]
[372425008,1752640242398,-386.27,0.00020547,2]
[372425010,1752640242407,-460.0,0.00020547,2]
[372425012,1752640242417,-460.0,0.00020547,2]
[372425014,1752640242426,-268.77,0.00020547,2]
[372425016,1752640242435,-460.0,0.00020547,2]
[372425018,1752640242445,-460.0,0.00020547,2]
[372425020,1752640242454,-460.0,0.00020547,2]
[372425022,1752640242463,-2936.0,0.00020547,2]
[372425024,1752640242472,-460.0,0.00020547,2]
[372425026,1752640242482,-602.44,0.00020547,2]
[372425028,1752640242491,-460.0,0.00020547,2]
[372425030,1752640242500,-744.89,0.00020547,2]
[372425032,1752640242509,-1589.32,0.00020547,2]
[372425034,1752640242518,-460.0,0.00020547,2]
[372425036,1752640242528,-979.0,0.00020547,2]
[372425038,1752640242538,-460.0,0.00020547,2]
[372425040,1752640242547,-1006.77,0.00020547,2]
[372425043,1752640242557,-460.0,0.00020547,2]
[372425045,1752640242566,-1228.14,0.00020547,2]
[372425046,1752640242575,-200.54,0.00020547,2]
[372425048,1752640242585,-705.74,0.00020547,2]
[372425051,1752640242595,-284.74,0.00020547,2]
[372425053,1752640242604,-460.0,0.00020547,2]
[372425055,1752640242613,-1986.36,0.00020547,2]
[372425057,1752640242622,-559.29,0.00020547,2]
[372425058,1752640242631,-460.0,0.00020547,2]
[372425061,1752640242640,-1104.0,0.00020548,2]
[372425062,1752640242649,-500.0,0.00020548,2]
[372425065,1752640242659,-160.0,0.00020646,2]
[372425067,1752640242668,-160.0,0.00020646,2]
[372425069,1752640242677,-160.0,0.00020646,2]
[372425071,1752640242686,-520.85416667,0.00020651,2]
[372425073,1752640242695,-1154.25,0.000207,2]
[372425075,1752640242705,-360.0,0.00020792,2]
[372425077,1752640242715,-500.0,0.0002082,2]
[372425079,1752640242726,-299.53807094,0.00020821,2]
[372425081,1752640242735,-547.00234821,0.00020821,2]
[372425084,1752640242745,-460.0,0.00020821,2]
[372425086,1752640242754,-453.73,0.00020821,2]
[372425088,1752640242763,-460.0,0.00020821,2]
[372425090,1752640242772,-2936.0,0.00020821,2]
[372425092,1752640242782,-162.05,0.00020821,2]
[372425094,1752640242791,-602.44,0.00020821,2]
[372425096,1752640242801,-460.0,0.00020821,2]
[372425098,1752640242810,-744.89,0.00020821,2]
[372425100,1752640242819,-1589.32,0.00020821,2]
[372425102,1752640242828,-460.0,0.00020821,2]
[372425104,1752640242838,-979.0,0.00020821,2]
[372425106,1752640242847,-460.0,0.00020821,2]
[372425108,1752640242857,-1006.77,0.00020821,2]
[372425110,1752640242866,-234.42,0.00020821,2]
[372425112,1752640242876,-1228.14,0.00020821,2]
[372425114,1752640242885,-705.74,0.00020821,2]
[372425116,1752640242894,-460.0,0.00020821,2]
[372425118,1752640242904,-1986.36,0.00020821,2]
[372425120,1752640242913,-559.29,0.00020821,2]
[372425122,1752640242922,-460.0,0.00020821,2]
[372425124,1752640242931,-1104.0,0.00020822,2]
[372425126,1752640242941,-500.0,0.00020822,2]
[372425128,1752640242950,-1000.0,0.00020835,2]
[372425130,1752640242959,-460.0,0.00020875,2]
[372425132,1752640242969,-460.0,0.00020875,2]
[372425134,1752640242978,-460.0,0.00020875,2]
[372425137,1752640242989,-620.44,0.00020875,2]
[372425139,1752640243000,-460.0,0.00020875,2]
[372425141,1752640243009,-460.0,0.00020875,2]
[372425143,1752640243020,-805.5,0.00020875,2]
[372425145,1752640243029,-460.0,0.00020875,2]
[372425147,1752640243041,-537.85,0.00020875,2]
[372425149,1752640243050,-2726.52,0.00020875,2]
[372425151,1752640243059,-466.07463854,0.00020875,2]
[372425153,1752640243069,-500.0,0.00020972,2]
[372425155,1752640243078,-500.0,0.00020972,2]
[372425157,1752640243088,-220.1,0.00020972,2]
[372425159,1752640243097,-151.0,0.00021,3]
[372425160,1752640243106,-153.26,0.00021095,2]
[372425163,1752640243115,-460.0,0.00021095,2]
[372425164,1752640243124,-2936.0,0.00021095,2]
[372425166,1752640243134,-602.44,0.00021095,2]
[372425169,1752640243143,-460.0,0.00021095,2]
[372425171,1752640243153,-744.89,0.00021095,2]
[372425173,1752640243162,-1589.32,0.00021095,2]
[372425175,1752640243171,-486.2246827,0.00021095,2]
[372425177,1752640243180,-979.0,0.00021095,2]
[372425179,1752640243189,-460.0,0.00021095,2]
[372425181,1752640243198,-1006.77,0.00021095,2]
[372425183,1752640243207,-1228.14,0.00021095,2]
[372425185,1752640243217,-705.74,0.00021095,2]
[372425187,1752640243226,-365.2,0.00021095,2]
[372425188,1752640243235,-1986.36,0.00021095,2]
[372425190,1752640243245,-559.29,0.00021095,2]
[372425192,1752640243254,-460.0,0.00021095,2]
[372425194,1752640243264,-1104.0,0.00021096,2]
[372425197,1752640243273,-500.0,0.00021096,2]
[372425198,1752640243284,-460.0,0.00021149,2]
[372425201,1752640243293,-620.44,0.00021149,2]
[372425203,1752640243302,-460.0,0.00021149,2]